fUSD/lending_fUSD_20241123
["ID","MTS","AMOUNT","RATE_DAILY","PERIOD"]
[343094872,1732348247225,-500.0,0.00054794,120]
[343094873,1732348247237,-500.0,0.00054794,120]
[343094874,1732348247249,-500.0,0.00054794,120]
[343094875,1732348247260,-500.0,0.00054794,120]
[343094876,1732348247271,-500.0,0.00054794,120]
[343094877,1732348247285,-500.0,0.00054794,120]
[343094878,1732348247296,-500.0,0.00054794,120]
[343094879,1732348247308,-500.0,0.00054794,120]
[343094880,1732348247319,-500.0,0.00054794,120]
[343094881,1732348247330,-500.0,0.00054794,120]
[343094882,1732348247341,-500.0,0.00054794,120]
[343094883,1732348247353,-500.0,0.00054794,120]
[343094884,1732348247364,-469.8,0.00054794,120]
[343094885,1732348247375,-439.92785551,0.00054794,120]
[343094886,1732348247387,-950.21,0.00054794,7]
[343094887,1732348247398,-950.21,0.00054794,7]
[343094888,1732348247409,-950.21,0.00054794,7]
[343094889,1732348247423,-950.21,0.00054794,7]
[343094890,1732348247434,-950.21,0.00054794,7]
[343094891,1732348247445,-950.21,0.00054794,7]
[343094892,1732348247457,-950.21,0.00054794,7]
[343094893,1732348247467,-950.21,0.00054794,7]
[343094894,1732348247480,-950.21,0.00054794,7]
[343094895,1732348247492,-950.21,0.00054794,7]
[343094896,1732348247504,-950.21,0.00054794,7]
[343094897,1732348247516,-950.21,0.00054794,7]
[343094898,1732348247526,-950.21,0.00054794,7]
[343094899,1732348247536,-950.21,0.00054794,7]
[343094900,1732348247546,-950.21,0.00054794,7]
[343094901,1732348247556,-950.21,0.00054794,7]
[343094902,1732348247566,-950.21,0.00054794,7]
[343094903,1732348247575,-950.21,0.00054794,7]
[343094904,1732348247585,-500.0,0.00054794,120]
[343094905,1732348247594,-500.0,0.00054794,120]
[343094906,1732348247604,-500.0,0.00054794,120]
[343094907,1732348247757,-525.51248937,0.00054794,120]
[343094908,1732348247778,-500.0,0.00054794,120]
[343094909,1732348247789,-179.72106261,0.00054794,120]
[343094910,1732348247798,-500.0,0.00054794,120]
[343094911,1732348247808,-500.0,0.00054794,120]
[343094912,1732348247817,-500.0,0.00054794,120]
[343094913,1732348247827,-500.0,0.00054794,120]
[343094914,1732348247836,-500.0,0.00054794,120]
[343094915,1732348247846,-500.0,0.00054794,120]
[343094916,1732348247855,-500.0,0.00054794,120]
[343094917,1732348247865,-500.0,0.00054794,120]
[343094918,1732348247875,-500.0,0.00054794,120]
[343094919,1732348247884,-500.0,0.00054794,120]
[343094920,1732348247894,-500.0,0.00054794,120]
[343094921,1732348247904,-458.51674711,0.00054794,120]
[343094922,1732348247913,-500.0,0.00054794,120]
[343094923,1732348247924,-500.0,0.00054794,120]
[343094924,1732348247934,-500.0,0.00054794,120]
[343094925,1732348247943,-500.0,0.00054794,120]
[343094926,1732348247953,-500.0,0.00054794,120]
[343094927,1732348247963,-500.0,0.00054794,60]
[343094928,1732348247973,-500.0,0.00054794,60]
[343094929,1732348247982,-304.19,0.00054794,60]
[343094930,1732348247992,-500.0,0.00054794,120]
[343094931,1732348248002,-500.0,0.00054794,120]
[343094932,1732348248011,-500.0,0.00054794,120]
[343094933,1732348248021,-500.0,0.00054794,120]
[343094934,1732348248031,-500.0,0.00054794,120]
[343094935,1732348248041,-500.0,0.00054794,120]
[343094936,1732348248051,-500.0,0.00054794,120]
[343094937,1732348248060,-507.83655461,0.00054794,120]
[343094938,1732348248069,-500.0,0.00054794,120]
[343094939,1732348248079,-500.0,0.00054794,120]
[343094940,1732348248089,-500.0,0.00054794,120]
[343094941,1732348248098,-500.0,0.00054794,120]
[343094942,1732348248107,-500.0,0.00054794,120]
[343094943,1732348248117,-500.0,0.00054794,120]
[343094944,1732348248127,-500.0,0.00054794,120]
[343094945,1732348248137,-500.0,0.00054794,120]
[343094946,1732348248146,-500.0,0.00054794,120]
[343094947,1732348248156,-500.0,0.00054794,120]
[343094948,1732348248166,-500.0,0.00054794,120]
[343094949,1732348248176,-500.0,0.00054794,120]
[343094950,1732348248186,-500.0,0.00054794,120]
[343094951,1732348248195,-500.0,0.00054794,120]
[343094952,1732348248204,-500.0,0.00054794,120]
[343094953,1732348248219,-500.0,0.00054794,120]
[343094954,1732348248228,-500.0,0.00054794,120]
[343094955,1732348248238,-500.0,0.00054794,120]
[343094956,1732348248248,-629.0,0.00054794,120]
[343094957,1732348248259,-500.0,0.00054794,120]
[343094958,1732348248268,-500.0,0.00054794,120]
[343094959,1732348248278,-500.0,0.00054794,120]
[343094960,1732348248290,-500.0,0.00054794,120]
[343094961,1732348248300,-500.0,0.00054794,120]
[343094962,1732348248310,-500.0,0.00054794,120]
[343094963,1732348248320,-500.0,0.00054794,120]
[343094964,1732348248330,-500.0,0.00054794,120]
[343094965,1732348248340,-500.0,0.00054794,120]
[343094966,1732348248349,-500.0,0.00054794,120]
[343094967,1732348248359,-500.0,0.00054794,120]
[343094968,1732348248368,-500.0,0.00054794,120]
[343094969,1732348248378,-500.0,0.00054794,120]
[343094970,1732348248388,-500.0,0.00054794,120]
[343094971,1732348248397,-500.0,0.00054794,120]
[343094972,1732348248407,-500.0,0.00054794,120]
[343094973,1732348248418,-592.44,0.00054794,120]
[343094974,1732348248428,-500.0,0.00054794,120]
[343094975,1732348248439,-500.0,0.00054794,120]
[343094976,1732348248448,-523.76878522,0.00054794,120]
[343094977,1732348248459,-500.0,0.00054794,120]
[343094978,1732348248468,-500.0,0.00054794,120]
[343094979,1732348248478,-500.0,0.00054794,120]
[343094980,1732348248488,-500.0,0.00054794,120]
[343094981,1732348248497,-299.14620249,0.00054794,120]
[343094982,1732348248507,-500.0,0.00054794,120]
[343094983,1732348248516,-500.0,0.00054794,120]
[343094984,1732348248526,-500.0,0.00054794,120]
[343094985,1732348248536,-500.0,0.00054794,120]
[343094986,1732348248547,-500.0,0.00054794,120]
[343094987,1732348248557,-500.0,0.00054794,120]
[343094988,1732348248567,-500.0,0.00054794,120]
[343094989,1732348248576,-244.07301207,0.00054794,120]
[343094990,1732348248586,-500.0,0.00054794,120]
[343094991,1732348248597,-506.01799307,0.00054794,120]
[343094992,1732348248607,-500.0,0.00054794,120]
[343094993,1732348248618,-500.0,0.00054794,120]
[343094994,1732348248628,-500.0,0.00054794,120]
[343094995,1732348248639,-500.0,0.00054794,120]
[343094996,1732348248650,-412.77599297,0.00054794,120]
[343094997,1732348248660,-500.0,0.00054794,120]
[343094998,1732348248672,-500.0,0.00054794,120]
[343094999,1732348248682,-500.0,0.00054794,120]
[343095000,1732348248691,-500.0,0.00054794,120]
[343095001,1732348248701,-545.0,0.00054794,120]
[343095002,1732348248712,-500.0,0.00054794,120]
[343095003,1732348248722,-500.0,0.00054794,120]
[343095004,1732348248732,-369.86340789,0.00054794,120]
[343095005,1732348248742,-500.0,0.00054794,120]
[343095006,1732348248751,-378.22453767,0.00054794,120]
[343095007,1732348248764,-189.24222092,0.00054794,120]
[343095008,1732348248774,-355.88827343,0.00054794,120]
[343095009,1732348248783,-500.0,0.00054794,120]
[343095010,1732348248794,-500.0,0.00054794,120]
[343095011,1732348248804,-500.0,0.00054794,120]
[343095012,1732348248814,-500.0,0.00054794,120]
[343095013,1732348248824,-500.0,0.00054794,120]
[343095014,1732348248834,-500.0,0.00054794,120]
[343095015,1732348248844,-500.0,0.00054794,120]
[343095016,1732348248854,-500.0,0.00054794,120]
[343095017,1732348248863,-507.4813589,0.00054794,120]
[343095018,1732348248873,-513.99094456,0.00054794,120]
[343095019,1732348248883,-161.55,0.00054794,120]
[343095020,1732348248893,-500.0,0.00054794,120]
[343095021,1732348248903,-513.22085177,0.00054794,120]
[343095022,1732348248913,-507.80990586,0.00054794,120]
[343095023,1732348248924,-512.90992485,0.00054794,120]
[343095024,1732348248934,-507.88557049,0.00054794,120]
[343095025,1732348248943,-504.60433245,0.00054794,120]
[343095026,1732348248953,-529.36536223,0.00054794,120]
[343095027,1732348248963,-532.12361046,0.00054794,120]
[343095028,1732348248972,-508.6432918,0.00054794,120]
[343095029,1732348248982,-552.35,0.00054794,120]
[343095030,1732348248992,-500.0,0.00054794,120]
[343095031,1732348249001,-782.02270459,0.00054794,120]
[343095032,1732348249011,-503.8349113,0.00054794,120]
[343095033,1732348249021,-415.76061774,0.00054794,120]
[343095034,1732348249031,-500.0,0.00054794,120]
[343095035,1732348249040,-500.0,0.00054794,120]
[343095036,1732348249049,-509.73977319,0.00054794,120]
[343095037,1732348249059,-500.0,0.00054794,120]
[343095038,1732348249068,-510.96085958,0.00054794,120]
[343095039,1732348249077,-531.05122,0.00054794,120]
[343095040,1732348249087,-500.0,0.00054794,120]
[343095041,1732348249097,-505.58371331,0.00054794,120]
[343095042,1732348249106,-500.0,0.00054794,120]
[343095043,1732348249115,-505.81303,0.00054794,120]
[343095044,1732348249124,-500.0,0.00054794,120]
[343095045,1732348249134,-275.03596438,0.00054794,120]
[343095046,1732348249143,-500.0,0.00054794,120]
[343095047,1732348249152,-500.0,0.00054794,120]
[343095048,1732348249161,-504.25070661,0.00054794,120]
[343095049,1732348249173,-500.0,0.00054794,120]
[343095050,1732348249183,-500.0,0.00054794,120]
[343095051,1732348249192,-500.0,0.00054794,120]
[343095052,1732348249203,-510.3553766,0.00054794,120]
[343095053,1732348249216,-507.43142209,0.00054794,120]
[343095054,1732348249226,-522.43123999,0.00054794,120]
[343095055,1732348249236,-500.0,0.00054795,120]
[343095056,1732348249247,-500.0,0.00055,30]
[343095057,1732348249257,-500.0,0.00055,30]
[343095058,1732348249267,-1446.23909492,0.00055062,15]
[343095059,1732348249277,-1000.0,0.00055321,7]
[343095060,1732348249287,-2982.35581908,0.00055377,15]
[343095061,1732348249299,-197.166,0.00055424,120]
[343095062,1732348249308,-188.77,0.00055588,2]
[343095063,1732348249318,-156.3025,0.0005568,120]
[343095064,1732348249327,-354.17,0.00055805,2]
[343095065,1732348249337,-590.98,0.0005597,120]
[343095066,1732348249347,-950.21,0.0005597,7]
[343095067,1732348249356,-200.0,0.00056227,30]
[343095068,1732348249366,-160.95,0.00056237,120]
[343095069,1732348249376,-1018.06561394,0.00056322,7]
[343095070,1732348249386,-671.06,0.00056367,30]
[343095071,1732348249395,-250.0,0.00056691,120]
[343095072,1732348249405,-590.98,0.00056805,120]
[343095073,1732348249415,-590.98,0.00056805,120]
[343095074,1732348249427,-590.98,0.00056805,120]
[343095075,1732348249437,-590.98,0.00056805,120]
[343095076,1732348249448,-591.1,0.00056805,120]
[343095077,1732348249458,-950.21,0.00056805,7]
[343095078,1732348249469,-950.21,0.00056805,7]
[343095079,1732348249479,-950.21,0.00056805,7]
[343095080,1732348249490,-950.21,0.00056805,7]
[343095081,1732348249500,-950.22898649,0.00056805,7]
[343095082,1732348249512,-1293.69,0.00056877,2]
[343095083,1732348249523,-1544.0,0.00056986,15]
[343095084,1732348249533,-151.62,0.0005699,120]
[343095085,1732348249543,-84488.89907517,0.00057,120]
[343095087,1732348276859,234.0,0.000397,3]
[343095088,1732348276985,288.1220877,0.0005,9]
[343095089,1732348277008,882.8779123,0.0005,9]
[343095090,1732348277459,468.0,0.0005,9]
[343095091,1732348313258,500.0,0.0005,120]
[343095092,1732348385528,-323.14299922,0.00052214,2]
[343095093,1732348385558,-1000.0,0.00052312,2]
[343095094,1732348385585,-2642.4269,0.00052312,2]
[343095095,1732348385614,-496034.43010078,0.00052312,2]
[343095100,1732348891894,139.05,0.00041096,2]
[343095101,1732348891917,17.64,0.00041096,2]
[343095103,1732349226120,-188.98173574,0.000496,7]
[343095104,1732349228256,132.36,0.00043354,120]
[343095105,1732349228280,150.0,0.00043354,120]
[343095106,1732349228306,150.0,0.00043354,120]
[343095107,1732349228329,150.0,0.00043354,120]
[343095108,1732349228532,116.23153713,0.00043354,120]
[343095109,1732349246102,-108.21826426,0.000496,7]
[343095110,1732349246124,-5596.01,0.000496,7]
[343095111,1732349246147,-1606.6840066,0.000499,2]
[343095112,1732349246168,-727.57687675,0.0005,120]
[343095113,1732349251565,250.0,0.00031,2]
[343095114,1732349252653,300.0,0.00033,2]
[343095115,1732349253723,350.0,0.00035,2]
[343095116,1732349254794,400.0,0.00037,2]
[343095117,1732349256060,450.0,0.00039,2]
[343095118,1732349256943,500.0,0.00041,2]
[343095119,1732349258026,550.0,0.00043,2]
[343095120,1732349258325,-9824.20513423,0.0005,120]
[343095121,1732349258350,-500.0,0.0005,2]
[343095122,1732349258375,-500.0,0.0005,2]
[343095123,1732349258399,-500.0,0.0005,2]
[343095124,1732349258424,-500.0,0.0005,2]
[343095125,1732349258454,-500.0,0.0005,2]
[343095126,1732349258478,-303.83845208,0.0005,2]
[343095127,1732349258506,-253.83441382,0.00052,60]
[343095128,1732349258536,-1000.0,0.00052212,2]
[343095129,1732349258561,-184.936,0.00052212,95]
[343095130,1732349258588,-1969.971,0.00052212,95]
[343095131,1732349258614,-20175.43539922,0.00052312,2]
[343095132,1732349258640,-1948.2777,0.00052312,2]
[343095133,1732349258666,-10087.34,0.00052312,2]
[343095134,1732349258691,-10000.0,0.00052312,2]
[343095135,1732349258717,-10000.0,0.00052312,2]
[343095136,1732349258747,-500.0,0.00052314,2]
[343095137,1732349258771,-9092.39,0.00052314,2]
[343095138,1732349258795,-12775.80244716,0.0005298,2]
[343095139,1732349259099,600.0,0.00045,2]
[343095140,1732349260172,650.0,0.00047,2]
[343095141,1732349261271,700.0,0.00049,2]
[343095142,1732349325357,694.51550515,0.00043354,120]
[343095151,1732349393427,-156.69,0.00053082,120]
[343095152,1732349393456,-500.0,0.00053398,2]
[343095153,1732349393483,-182.75,0.00053503,120]
[343095154,1732349393508,-1000.0,0.00053518,120]
[343095155,1732349393535,-2751.0,0.00053526,120]
[343095156,1732349393562,-84150.90484847,0.00053536,2]
[343095157,1732349393591,-11258.65515153,0.00053546,2]
[343095158,1732349416533,512.0108,0.00051758,2]
[343095220,1732349452058,-652.3092,0.00051758,2]
[343095221,1732349452069,-10000.0,0.0005299,120]
[343095222,1732349452078,-6868.75357874,0.0005299,120]
[343095223,1732349452087,-150.0,0.0005299,2]
[343095224,1732349452096,-285.08,0.0005299,2]
[343095225,1732349452105,-10000.0,0.0005299,120]
[343095226,1732349452115,-150.54,0.00053442,2]
[343095227,1732349452124,-12641.34484847,0.00053546,2]
[343095228,1732349452133,-200.0,0.00053565,30]
[343095229,1732349452145,-188.77,0.00053568,2]
[343095230,1732349452156,-159.17,0.00053688,120]
[343095231,1732349452166,-500.0,0.00053699,2]
[343095232,1732349452175,-200.0,0.00053733,2]
[343095233,1732349452184,-1164.32,0.00054022,2]
[343095234,1732349452194,-335.53,0.00054045,2]
[343095235,1732349452204,-150.0,0.00054068,2]
[343095236,1732349452213,-1751.24,0.00054106,120]
[343095237,1732349452223,-252.7895,0.00054144,120]
[343095238,1732349452232,-178.37,0.00054286,120]
[343095239,1732349452242,-327.7735,0.00054293,120]
[343095240,1732349452251,-174.16,0.00054386,2]
[343095241,1732349452260,-174.16,0.0005444,2]
[343095242,1732349452270,-174.16,0.00054495,2]
[343095243,1732349452279,-174.16,0.00054549,2]
[343095244,1732349452289,-174.16,0.00054603,2]
[343095245,1732349452299,-243.98,0.00054646,2]
[343095246,1732349452308,-174.16,0.00054658,2]
[343095247,1732349452317,-671.9989,0.00054694,2]
[343095248,1732349452326,-1000.0,0.00054694,2]
[343095249,1732349452335,-2500.0,0.00054694,2]
[343095250,1732349452411,-4024.4942,0.00054694,2]
[343095251,1732349452421,-251345.7436,0.00054694,2]
[343095252,1732349452431,-100000.0,0.00054694,2]
[343095253,1732349452440,-385.2602,0.00054694,2]
[343095254,1732349452449,-343.02819986,0.00054694,2]
[343095255,1732349452459,-167.52,0.00054744,2]
[343095256,1732349452468,-500.0,0.00054794,120]
[343095257,1732349452478,-500.0,0.00054794,120]
[343095258,1732349452487,-500.0,0.00054794,120]
[343095259,1732349452496,-500.0,0.00054794,120]
[343095260,1732349452506,-506.6861035,0.00054794,120]
[343095261,1732349452515,-500.0,0.00054794,120]
[343095262,1732349452524,-571.40551914,0.00054794,120]
[343095263,1732349452534,-500.0,0.00054794,120]
[343095264,1732349452543,-500.0,0.00054794,120]
[343095265,1732349452552,-497.4463595,0.00054794,120]
[343095266,1732349452561,-500.0,0.00054794,120]
[343095267,1732349452570,-536.46261759,0.00054794,120]
[343095268,1732349452580,-500.0,0.00054794,120]
[343095269,1732349452589,-500.0,0.00054794,120]
[343095270,1732349452600,-500.0,0.00054794,120]
[343095271,1732349452611,-500.0,0.00054794,120]
[343095272,1732349452621,-150.0,0.00054794,120]
[343095273,1732349452630,-500.0,0.00054794,120]
[343095274,1732349452641,-184.02339311,0.00054794,120]
[343095275,1732349452651,-500.0,0.00054794,120]
[343095276,1732349452661,-500.0,0.00054794,120]
[343095277,1732349452672,-500.0,0.00054794,120]
[343095278,1732349452682,-500.0,0.00054794,120]
[343095279,1732349452691,-500.0,0.00054794,120]
[343095280,1732349452701,-500.0,0.00054794,120]
[343095281,1732349452710,-500.0,0.00054794,120]
[343095282,1732349452719,-500.0,0.00054794,120]
[343095283,1732349452728,-500.0,0.00054794,120]
[343095284,1732349452738,-500.0,0.00054794,120]
[343095285,1732349452747,-500.0,0.00054794,30]
[343095286,1732349452757,-500.0,0.00054794,120]
[343095287,1732349452766,-500.0,0.00054794,120]
[343095288,1732349452776,-500.0,0.00054794,120]
[343095289,1732349452785,-500.0,0.00054794,120]
[343095290,1732349452795,-500.0,0.00054794,120]
[343095291,1732349452804,-378.57794129,0.00054794,120]
[343095292,1732349452814,-500.0,0.00054794,120]
[343095293,1732349452823,-367.47961842,0.00054794,120]
[343095294,1732349452832,-500.0,0.00054794,120]
[343095295,1732349452842,-500.0,0.00054794,120]
[343095296,1732349452851,-500.0,0.00054794,120]
[343095297,1732349452860,-492.36880116,0.00054794,120]
[343095298,1732349452869,-500.0,0.00054794,120]
[343095299,1732349452878,-500.0,0.00054794,120]
[343095300,1732349452888,-500.0,0.00054794,120]
[343095301,1732349452899,-300.0,0.00054905,120]
[343095302,1732349452908,-150.54,0.00055037,120]
[343095303,1732349452918,-250.0,0.00055053,120]
[343095304,1732349452927,-248.0,0.00055053,2]
[343095305,1732349452950,-250.0,0.0005514,120]
[343095306,1732349452966,-250.0,0.0005572,120]
[343095307,1732349452987,-165.88,0.00055737,2]
[343095308,1732349453007,-500.0,0.00055999,120]
[343095309,1732349453023,-500.0,0.00055999,120]
[343095310,1732349453040,-500.0,0.00055999,120]
[343095311,1732349453059,-500.0,0.00055999,120]
[343095312,1732349453078,-218.08387791,0.00055999,120]
[343095313,1732349453096,-500.0,0.00055999,120]
[343095314,1732349453113,-500.0,0.00055999,120]
[343095315,1732349453130,-629.3109,0.00055999,120]
[343095316,1732349453143,-500.0,0.00055999,120]
[343095317,1732349453162,-500.0,0.00055999,120]
[343095318,1732349453174,-396.89,0.00055999,120]
[343095319,1732349453190,-500.0,0.00055999,120]
[343095320,1732349453206,-186.241527,0.00055999,120]
[343095321,1732349453220,-265.140137,0.00055999,120]
[343095322,1732349453234,-500.0,0.00055999,120]
[343095323,1732349453249,-137401.65949114,0.00056,120]
[343095324,1732349453263,-2560.89287524,0.00056175,15]
[343095325,1732349453277,-300.0,0.00056275,120]
[343095326,1732349453292,-1164.32,0.00056286,2]
[343095327,1732349453306,-168.38,0.00056471,120]
[343095328,1732349453321,-150.54,0.00056633,120]
[343095329,1732349453336,-500.0,0.00056799,120]
[343095330,1732349453351,-4121.6709,0.000568,2]
[343095331,1732349453365,-151.62,0.00056889,120]
[343095332,1732349453379,-500.0,0.00056899,120]
[343095333,1732349453393,-481.52282776,0.00056899,120]
[343095334,1732349453408,-500.0,0.00056899,120]
[343095335,1732349453422,-500.0,0.00056899,120]
[343095336,1732349453437,-500.0,0.00056899,120]
[343095337,1732349453452,-500.0,0.00056899,120]
[343095338,1732349453466,-500.0,0.00056899,120]
[343095339,1732349453480,-510.90987688,0.00056899,120]
[343095340,1732349453494,-521.64337534,0.00056899,120]
[343095341,1732349453510,-544.35133768,0.00056899,120]
[343095342,1732349453524,-506.76882877,0.00056899,120]
[343095343,1732349453537,-506.97971788,0.00056899,120]
[343095344,1732349453552,-506.90092691,0.00056899,120]
[343095345,1732349453566,-509.86239755,0.00056899,120]
[343095346,1732349453580,-514.83190076,0.00056899,120]
[343095347,1732349453594,-509.26195879,0.00056899,120]
[343095348,1732349453611,-505.11101735,0.00056899,120]
[343095349,1732349453625,-500.0,0.00056899,120]
[343095350,1732349453642,-500.0,0.00056899,120]
[343095351,1732349453656,-500.0,0.00056899,120]
[343095352,1732349453670,-500.0,0.00056899,120]
[343095353,1732349453685,-500.0,0.00056899,120]
[343095354,1732349453701,-500.0,0.00056899,120]
[343095355,1732349453716,-500.0,0.00056899,120]
[343095356,1732349453730,-500.0,0.00056899,120]
[343095357,1732349453839,-500.0,0.00056899,120]
[343095358,1732349453851,-500.0,0.00056899,120]
[343095359,1732349453861,-500.0,0.00056899,120]
[343095360,1732349453871,-500.0,0.00056899,120]
[343095361,1732349453881,-500.0,0.00056899,120]
[343095362,1732349453891,-500.0,0.00056899,120]
[343095363,1732349453901,-500.0,0.00056899,120]
[343095364,1732349453911,-500.0,0.00056899,120]
[343095365,1732349453920,-500.0,0.00056899,120]
[343095366,1732349453930,-500.0,0.00056899,120]
[343095367,1732349453939,-500.0,0.00056899,120]
[343095368,1732349453948,-500.0,0.00056899,120]
[343095369,1732349453958,-500.0,0.00056899,120]
[343095370,1732349453967,-500.0,0.00056899,120]
[343095371,1732349453976,-500.0,0.00056899,120]
[343095372,1732349453986,-500.0,0.00056899,120]
[343095373,1732349453995,-505.17864359,0.00056899,120]
[343095374,1732349454004,-500.0,0.00056899,120]
[343095375,1732349454013,-500.0,0.00056899,120]
[343095376,1732349454023,-500.0,0.00056899,120]
[343095377,1732349454032,-500.0,0.00056899,120]
[343095378,1732349454041,-500.0,0.00056899,120]
[343095379,1732349454050,-500.0,0.00056899,120]
[343095380,1732349454059,-503.84,0.00056899,120]
[343095381,1732349454069,-500.0,0.00056899,120]
[343095382,1732349454078,-500.0,0.00056899,120]
[343095383,1732349454088,-500.0,0.00056899,120]
[343095384,1732349454097,-500.0,0.00056899,120]
[343095385,1732349454108,-502.78602405,0.00056899,120]
[343095386,1732349454118,-500.0,0.00056899,120]
[343095387,1732349454127,-500.0,0.00056899,120]
[343095388,1732349454136,-500.0,0.00056899,120]
[343095389,1732349454147,-500.0,0.00056899,120]
[343095390,1732349454156,-502.78511373,0.00056899,120]
[343095391,1732349454165,-500.0,0.00056899,120]
[343095392,1732349454174,-500.0,0.00056899,120]
[343095393,1732349454183,-500.0,0.00056899,120]
[343095394,1732349454192,-500.0,0.00056899,120]
[343095395,1732349454202,-500.0,0.00056899,120]
[343095396,1732349454211,-500.0,0.00056899,120]
[343095397,1732349454220,-500.0,0.00056899,120]
[343095398,1732349454229,-500.0,0.00056899,120]
[343095399,1732349454239,-500.0,0.00056899,120]
[343095400,1732349454247,-177.85629457,0.00056899,120]
[343095401,1732349454256,-505.76463489,0.00056899,120]
[343095402,1732349454266,-500.0,0.00056899,120]
[343095403,1732349454275,-500.0,0.00056899,120]
[343095404,1732349454284,-500.0,0.00056899,120]
[343095405,1732349454294,-500.0,0.00056899,120]
[343095406,1732349454303,-500.0,0.00056899,120]
[343095407,1732349454312,-527.96533694,0.00056899,7]
[343095408,1732349454322,-450.93,0.00056899,120]
[343095409,1732349454331,-500.0,0.00056899,120]
[343095410,1732349454340,-500.0,0.00056899,120]
[343095411,1732349454350,-500.0,0.00056899,120]
[343095412,1732349454359,-500.0,0.00056899,120]
[343095413,1732349454369,-500.0,0.00056899,120]
[343095414,1732349454378,-508.02782634,0.00056899,120]
[343095415,1732349454387,-523.0851173,0.00056899,120]
[343095416,1732349454399,-500.0,0.00056899,120]
[343095417,1732349454408,-497.75914317,0.00056899,120]
[343095418,1732349454418,-500.0,0.00056899,120]
[343095419,1732349454427,-166.85871677,0.00056899,120]
[343095420,1732349454436,-449.15151559,0.00056899,120]
[343095421,1732349454446,-500.0,0.00056899,120]
[343095422,1732349454455,-485.97375072,0.00056899,120]
[343095423,1732349454464,-245000.0,0.000569,2]
[343095424,1732349454473,-360.21812283,0.000569,30]
[343095425,1732349454483,-400.0,0.000569,20]
[343095426,1732349454492,-151.62,0.0005699,120]
[343095427,1732349454502,-500.0,0.00056999,120]
[343095428,1732349454511,-500.0,0.00056999,120]
[343095429,1732349454521,-500.0,0.00056999,120]
[343095430,1732349454530,-296.67,0.00056999,120]
[343095431,1732349454540,-155.27,0.00056999,120]
[343095432,1732349454549,-518.13111182,0.00056999,120]
[343095433,1732349454559,-517.80080508,0.00056999,120]
[343095434,1732349454569,-536.3753178,0.00056999,120]
[343095435,1732349454578,-531.81321668,0.00056999,120]
[343095436,1732349454588,-513.26700768,0.00056999,120]
[343095437,1732349454598,-507.25657562,0.00056999,120]
[343095438,1732349454611,-513.67236001,0.00056999,120]
[343095439,1732349454620,-512.50950484,0.00056999,120]
[343095440,1732349454630,-513.45906471,0.00056999,120]
[343095441,1732349454639,-519.88180136,0.00056999,120]
[343095442,1732349454651,-510.93944265,0.00056999,120]
[343095443,1732349454661,-504.80184508,0.00056999,120]
[343095444,1732349454671,-512.54368221,0.00056999,120]
[343095445,1732349454681,-539.9714901,0.00056999,120]
[343095446,1732349454690,-528.66810494,0.00056999,120]